[Event "*** Titled Tuesday 3|2 Blitz"]
[Site "Chess.com"]
[Date "2016.03.01"]
[Round "2"]
[White "MinhGTrAn"]
[Black "jcibarra"]
[Result "1-0"]
[WhiteElo "2660"]
[BlackElo "2474"]
[TimeControl "180+2"]
[EndTime "11:54:04 PST"]
[Termination "MinhGTrAn won by resignation"]

1. d4 {[%clk 0:03:01.9]} 1... Nf6 {[%clk 0:03:00.5]} 2. c4 {[%clk 0:03:03.2]}
2... d6 {[%clk 0:03:01.8]} 3. Nc3 {[%clk 0:03:00.5]} 3... Bf5 {[%clk 0:03:02.2]}
4. e4 {[%clk 0:02:48.6]} 4... Bg6 {[%clk 0:02:43.5]} 5. Bd3 {[%clk 0:02:48.3]}
5... e5 {[%clk 0:02:42.8]} 6. Nge2 {[%clk 0:02:46.8]} 6... Be7 {[%clk 0:02:39]}
7. O-O {[%clk 0:02:47.5]} 7... O-O {[%clk 0:02:38.2]} 8. f3 {[%clk 0:02:46.9]}
8... Nc6 {[%clk 0:02:35.2]} 9. Be3 {[%clk 0:02:48]} 9... Re8 {[%clk 0:02:28.5]}
10. d5 {[%clk 0:02:49]} 10... Nb4 {[%clk 0:02:28.3]} 11. Bb1 {[%clk 0:02:48.4]}
11... a5 {[%clk 0:02:29.4]} 12. a3 {[%clk 0:02:46]} 12... Na6 {[%clk 0:02:30.5]}
13. Bd3 {[%clk 0:02:47.1]} 13... Nd7 {[%clk 0:02:30.7]} 14. Rb1 {[%clk
0:02:35.1]} 14... Bg5 {[%clk 0:02:28.8]} 15. Bf2 {[%clk 0:02:34.8]} 15... Nac5
{[%clk 0:02:22.2]} 16. Bc2 {[%clk 0:02:35.8]} 16... Nb6 {[%clk 0:02:20.9]} 17.
b4 {[%clk 0:02:33.9]} 17... axb4 {[%clk 0:02:22.1]} 18. axb4 {[%clk 0:02:35.8]}
18... Ncd7 {[%clk 0:02:23.7]} 19. c5 {[%clk 0:02:36.4]} 19... Nc4 {[%clk
0:02:20.9]} 20. cxd6 {[%clk 0:01:37.4]} 20... cxd6 {[%clk 0:02:18.6]} 21. Ra1
{[%clk 0:01:34.4]} 21... Ne3 {[%clk 0:02:07.8]} 22. Rxa8 {[%clk 0:01:31.9]}
22... Qxa8 {[%clk 0:02:05.3]} 23. Qd2 {[%clk 0:01:33.1]} 23... Nxf1 {[%clk
0:01:19.2]} 24. Qxg5 {[%clk 0:01:33.9]} 24... Qa1 {[%clk 0:01:20.6]} 25. Bb1
{[%clk 0:01:17.7]} 25... Rc8 {[%clk 0:01:13.4]} 26. Qc1 {[%clk 0:01:13.4]} 26...
Nxh2 {[%clk 0:00:54]} 27. Kxh2 {[%clk 0:01:14.3]} 27... h6 {[%clk 0:00:50.6]}
28. Qd2 {[%clk 0:01:14.5]} 28... Rc4 {[%clk 0:00:39.3]} 29. Qa2 {[%clk
0:01:04.4]} 29... Qxa2 {[%clk 0:00:30.7]} 30. Nxa2 {[%clk 0:01:06.3]} 30... f5
{[%clk 0:00:31.3]} 31. exf5 {[%clk 0:01:03.1]} 31... Bf7 {[%clk 0:00:32.3]} 32.
Bd3 {[%clk 0:00:52.5]} 32... Rc8 {[%clk 0:00:30.3]} 33. Nac3 {[%clk 0:00:51.2]}
33... Nf6 {[%clk 0:00:31.9]} 34. Ne4 {[%clk 0:00:38.3]} 34... Nxd5 {[%clk
0:00:23.3]} 35. Nxd6 {[%clk 0:00:38.4]} 35... Rc7 {[%clk 0:00:24.1]} 36. Bc4
{[%clk 0:00:30.4]} 36... b5 {[%clk 0:00:08.4]} 37. Bb3 {[%clk 0:00:26.6]} 37...
Nxb4 {[%clk 0:00:07.4]} 38. Bxf7+ {[%clk 0:00:27.2]} 38... Kf8 {[%clk 0:00:09]}
39. Bb3 {[%clk 0:00:19.6]} 39... Nd3 {[%clk 0:00:10.1]} 40. Be3 {[%clk
0:00:17.2]} 40... b4 {[%clk 0:00:11.5]} 41. Nc4 {[%clk 0:00:17.8]} 41... Ke7
{[%clk 0:00:10.4]} 42. Nc1 {[%clk 0:00:18.5]} 42... Nc5 {[%clk 0:00:09.7]} 43.
Bxc5+ {[%clk 0:00:19.4]} 43... Rxc5 {[%clk 0:00:11.6]} 44. Nd3 {[%clk
0:00:21.3]} 44... Rb5 {[%clk 0:00:12.2]} 45. Ncxe5 {[%clk 0:00:22.4]} 45... Kf6
{[%clk 0:00:13.4]} 46. g4 {[%clk 0:00:22.9]} 46... h5 {[%clk 0:00:11.9]} 47. Kg3
{[%clk 0:00:24.1]} 47... Rb8 {[%clk 0:00:11.9]} 48. Nd7+ {[%clk 0:00:25]} 48...
Kg5 {[%clk 0:00:12.4]} 49. Nxb8 {[%clk 0:00:26.9]} 49... h4+ {[%clk 0:00:13.1]}
50. Kh3 {[%clk 0:00:27.9]} 1-0

[Event "*** Titled Tuesday 3|2 Blitz"]
[Site "Chess.com"]
[Date "2016.03.01"]
[Round "2"]
[White "davidarenas1224"]
[Black "Iwannabetheguy"]
[Result "0-1"]
[WhiteElo "2072"]
[BlackElo "2015"]
[TimeControl "180+2"]
[EndTime "11:54:33 PST"]
[Termination "Iwannabetheguy won on time"]

1. e4 {[%clk 0:02:57.9]} 1... e5 {[%clk 0:03:00.9]} 2. Nf3 {[%clk 0:02:58.4]}
2... Nc6 {[%clk 0:03:02.4]} 3. Bb5 {[%clk 0:02:58.6]} 3... a6 {[%clk 0:03:02.4]}
4. Ba4 {[%clk 0:02:59.2]} 4... Nf6 {[%clk 0:03:03.6]} 5. O-O {[%clk 0:02:59.3]}
5... Be7 {[%clk 0:03:05]} 6. Qe2 {[%clk 0:02:59.7]} 6... b5 {[%clk 0:03:04.3]}
7. Bb3 {[%clk 0:03:00.8]} 7... O-O {[%clk 0:03:05.6]} 8. c3 {[%clk 0:03:01.8]}
8... d5 {[%clk 0:03:06.6]} 9. d3 {[%clk 0:03:03.1]} 9... Bg4 {[%clk 0:02:56.9]}
10. Rd1 {[%clk 0:03:00.4]} 10... d4 {[%clk 0:02:53.1]} 11. Nbd2 {[%clk
0:02:59.1]} 11... Na5 {[%clk 0:02:48.7]} 12. Bc2 {[%clk 0:02:55.6]} 12... c5
{[%clk 0:02:49]} 13. h3 {[%clk 0:02:56]} 13... Bxf3 {[%clk 0:02:47.2]} 14. Qxf3
{[%clk 0:02:43.2]} 14... Nc6 {[%clk 0:02:47.6]} 15. Nf1 {[%clk 0:02:39.8]} 15...
Re8 {[%clk 0:02:45.2]} 16. Ng3 {[%clk 0:02:39.7]} 16... g6 {[%clk 0:02:46.2]}
17. Bg5 {[%clk 0:02:19.1]} 17... Nd7 {[%clk 0:02:39.6]} 18. Bd2 {[%clk
0:01:54.8]} 18... Bg5 {[%clk 0:02:37.2]} 19. Bb3 {[%clk 0:01:52.5]} 19... Rf8
{[%clk 0:02:24.3]} 20. Bd5 {[%clk 0:01:48.8]} 20... Rc8 {[%clk 0:02:20.5]} 21.
c4 {[%clk 0:01:21.9]} 21... Bxd2 {[%clk 0:02:19.1]} 22. Rxd2 {[%clk 0:01:22.9]}
22... b4 {[%clk 0:01:53.3]} 23. a3 {[%clk 0:01:14.3]} 23... Nf6 {[%clk
0:01:35.1]} 24. Bxc6 {[%clk 0:00:59.9]} 24... Rxc6 {[%clk 0:01:35.2]} 25. Qd1
{[%clk 0:00:49.7]} 25... Qb6 {[%clk 0:01:23.4]} 26. b3 {[%clk 0:00:49]} 26...
Ra8 {[%clk 0:01:20.1]} 27. Rda2 {[%clk 0:00:47.9]} 27... Rb8 {[%clk 0:01:16.9]}
28. axb4 {[%clk 0:00:33.1]} 28... cxb4 {[%clk 0:01:07]} 29. Ne2 {[%clk
0:00:30.1]} 29... Nd7 {[%clk 0:01:03.6]} 30. f4 {[%clk 0:00:30.7]} 30... f6
{[%clk 0:00:59.5]} 31. f5 {[%clk 0:00:27.6]} 31... Nc5 {[%clk 0:00:56.6]} 32.
Ng3 {[%clk 0:00:26.3]} 32... Qc7 {[%clk 0:00:42.3]} 33. Rb2 {[%clk 0:00:22.4]}
33... Qg7 {[%clk 0:00:42.8]} 34. h4 {[%clk 0:00:19.2]} 34... Qh6 {[%clk
0:00:43.7]} 35. Qf3 {[%clk 0:00:16.8]} 35... Qxh4 {[%clk 0:00:41.9]} 36. fxg6
{[%clk 0:00:15.5]} 36... hxg6 {[%clk 0:00:42.6]} 37. Kf2 {[%clk 0:00:16.4]}
37... Qf4 {[%clk 0:00:35.6]} 38. Ke2 {[%clk 0:00:11.7]} 38... Qxf3+ {[%clk
0:00:29.7]} 39. gxf3 {[%clk 0:00:13.6]} 39... Rc7 {[%clk 0:00:27.5]} 40. Rh1
{[%clk 0:00:13.6]} 40... Rh7 {[%clk 0:00:28.3]} 41. Rxh7 {[%clk 0:00:14.2]}
41... Kxh7 {[%clk 0:00:29.6]} 42. Kf2 {[%clk 0:00:12.4]} 42... Kg7 {[%clk
0:00:30.8]} 43. Ke2 {[%clk 0:00:13.4]} 43... Rh8 {[%clk 0:00:32]} 44. Nf1 {[%clk
0:00:14]} 44... Rh3 {[%clk 0:00:32.2]} 45. Ra2 {[%clk 0:00:14.9]} 45... Rh5
{[%clk 0:00:28.4]} 46. Ra5 {[%clk 0:00:12.5]} 46... Nxb3 {[%clk 0:00:28.1]} 47.
Rxa6 {[%clk 0:00:13.8]} 47... Rg5 {[%clk 0:00:27.3]} 48. Ra7+ {[%clk 0:00:11.7]}
48... Kh6 {[%clk 0:00:27.9]} 49. Kf2 {[%clk 0:00:12.5]} 49... Nc1 {[%clk
0:00:27.8]} 50. Rb7 {[%clk 0:00:12.3]} 50... b3 {[%clk 0:00:25.8]} 51. Nd2
{[%clk 0:00:10]} 51... b2 {[%clk 0:00:25.5]} 52. f4 {[%clk 0:00:08]} 52... exf4
{[%clk 0:00:25.8]} 53. Nf3 {[%clk 0:00:09.2]} 53... Rg3 {[%clk 0:00:24.3]} 54.
c5 {[%clk 0:00:07.3]} 54... Nxd3+ {[%clk 0:00:24.5]} 55. Ke2 {[%clk 0:00:08.7]}
55... Nxc5 {[%clk 0:00:25.4]} 56. Rxb2 {[%clk 0:00:09.7]} 56... Rg2+ {[%clk
0:00:26.3]} 0-1

[Event "*** Titled Tuesday 3|2 Blitz"]
[Site "Chess.com"]
[Date "2016.03.01"]
[Round "2"]
[White "Yaacovn"]
[Black "dretch"]
[Result "1-0"]
[WhiteElo "2629"]
[BlackElo "2470"]
[TimeControl "180+2"]
[EndTime "11:54:35 PST"]
[Termination "Yaacovn won on time"]

1. d4 {[%clk 0:03:01.4]} 1... d5 {[%clk 0:02:59.7]} 2. Nf3 {[%clk 0:03:02.8]}
2... Nf6 {[%clk 0:02:59.8]} 3. c4 {[%clk 0:03:04.5]} 3... c5 {[%clk 0:03:00.5]}
4. cxd5 {[%clk 0:03:06.2]} 4... cxd4 {[%clk 0:03:01]} 5. Qxd4 {[%clk 0:03:06.9]}
5... Qxd5 {[%clk 0:03:02]} 6. Nc3 {[%clk 0:03:08.4]} 6... Qxd4 {[%clk
0:03:03.2]} 7. Nxd4 {[%clk 0:03:10.3]} 7... a6 {[%clk 0:03:04.8]} 8. e4 {[%clk
0:03:11.1]} 8... e5 {[%clk 0:03:04.7]} 9. Nb3 {[%clk 0:03:12.3]} 9... Bb4 {[%clk
0:03:03.6]} 10. f3 {[%clk 0:03:13.8]} 10... Be6 {[%clk 0:02:58.3]} 11. Bd2
{[%clk 0:03:13.5]} 11... Nbd7 {[%clk 0:02:58.6]} 12. Na4 {[%clk 0:03:09.7]}
12... Bxd2+ {[%clk 0:02:56.2]} 13. Kxd2 {[%clk 0:03:07.9]} 13... Bxb3 {[%clk
0:02:51.8]} 14. axb3 {[%clk 0:03:08.9]} 14... Ke7 {[%clk 0:02:48.6]} 15. Ke3
{[%clk 0:03:05.3]} 15... Rac8 {[%clk 0:02:47.4]} 16. Bd3 {[%clk 0:03:05.6]}
16... Nc5 {[%clk 0:02:43.9]} 17. Nxc5 {[%clk 0:02:55.1]} 17... Rxc5 {[%clk
0:02:45.8]} 18. b4 {[%clk 0:02:55]} 18... Rc7 {[%clk 0:02:44.8]} 19. Rhc1 {[%clk
0:02:45.5]} 19... Rhc8 {[%clk 0:02:43.2]} 20. Rxc7+ {[%clk 0:02:40.5]} 20...
Rxc7 {[%clk 0:02:45.1]} 21. Ra5 {[%clk 0:02:41.4]} 21... Nd7 {[%clk 0:02:43.9]}
22. g3 {[%clk 0:02:39.7]} 22... Rc1 {[%clk 0:02:37]} 23. b5 {[%clk 0:02:39.1]}
23... axb5 {[%clk 0:02:34.3]} 24. Bxb5 {[%clk 0:02:37.7]} 24... Nc5 {[%clk
0:02:23.9]} 25. Be2 {[%clk 0:02:37.2]} 25... Kd6 {[%clk 0:02:18.8]} 26. b4
{[%clk 0:02:36.1]} 26... Nd7 {[%clk 0:02:10]} 27. Rd5+ {[%clk 0:02:30.4]} 27...
Ke6 {[%clk 0:02:08.9]} 28. f4 {[%clk 0:02:26.2]} 28... exf4+ {[%clk 0:01:57.7]}
29. gxf4 {[%clk 0:02:26.5]} 29... Ke7 {[%clk 0:01:53.8]} 30. Rb5 {[%clk
0:02:22.8]} 30... Rc7 {[%clk 0:01:42.3]} 31. e5 {[%clk 0:02:21.4]} 31... b6
{[%clk 0:01:23.5]} 32. Bg4 {[%clk 0:02:19.6]} 32... Rc6 {[%clk 0:01:16.4]} 33.
Bxd7 {[%clk 0:01:26.8]} 33... Kxd7 {[%clk 0:01:17]} 34. Rd5+ {[%clk 0:01:17.1]}
34... Ke6 {[%clk 0:01:14.5]} 35. Ke4 {[%clk 0:01:12.1]} 35... Rc4+ {[%clk
0:00:37.9]} 36. Rd4 {[%clk 0:01:13.3]} 36... Rxd4+ {[%clk 0:00:37.4]} 37. Kxd4
{[%clk 0:01:15.2]} 37... Kf5 {[%clk 0:00:35.8]} 38. Ke3 {[%clk 0:01:13.1]} 38...
g5 {[%clk 0:00:23.3]} 39. fxg5 {[%clk 0:01:13.1]} 39... Kxe5 {[%clk 0:00:23.5]}
40. h4 {[%clk 0:01:06.1]} 40... b5 {[%clk 0:00:17.7]} 41. Kf3 {[%clk 0:01:07.1]}
41... Kf5 {[%clk 0:00:16]} 42. Kg3 {[%clk 0:01:07.5]} 42... Ke5 {[%clk
0:00:09.9]} 43. Kg4 {[%clk 0:01:08]} 43... Kd4 {[%clk 0:00:06.8]} 44. Kh5 {[%clk
0:00:48.8]} 44... Kc4 {[%clk 0:00:08.7]} 45. Kh6 {[%clk 0:00:50.3]} 45... Kxb4
{[%clk 0:00:09.3]} 46. Kxh7 {[%clk 0:00:51.4]} 46... Kc5 {[%clk 0:00:06.6]} 47.
h5 {[%clk 0:00:50.5]} 47... b4 {[%clk 0:00:08]} 48. Kg8 {[%clk 0:00:36.7]} 48...
b3 {[%clk 0:00:09.3]} 49. h6 {[%clk 0:00:38.2]} 49... b2 {[%clk 0:00:10.6]} 50.
h7 {[%clk 0:00:40.1]} 50... b1=Q {[%clk 0:00:10.9]} 51. h8=Q {[%clk 0:00:42]}
51... Qg6+ {[%clk 0:00:02.4]} 52. Qg7 {[%clk 0:00:42.7]} 52... Qh5 {[%clk
0:00:02.5]} 53. Qe5+ {[%clk 0:00:41.1]} 53... Kc6 {[%clk 0:00:02.9]} 54. Qf6+
{[%clk 0:00:37.6]} 54... Kc5 {[%clk 0:00:04.4]} 55. Qe7+ {[%clk 0:00:37.4]}
55... Kc6 {[%clk 0:00:05.9]} 56. Kf8 {[%clk 0:00:35.8]} 56... Qh8+ {[%clk
0:00:05.1]} 57. Kxf7 {[%clk 0:00:36.9]} 57... Qh7+ {[%clk 0:00:05.6]} 58. Kf6
{[%clk 0:00:38]} 58... Qh8+ {[%clk 0:00:06.8]} 59. Kf5 {[%clk 0:00:37.6]} 59...
Kd5 {[%clk 0:00:04]} 60. Qe6+ {[%clk 0:00:38.4]} 60... Kc5 {[%clk 0:00:02.9]}
61. Qe5+ {[%clk 0:00:39.8]} 1-0

[Event "*** Titled Tuesday 3|2 Blitz"]
[Site "Chess.com"]
[Date "2016.03.01"]
[Round "2"]
[White "Smirnov_Pavel"]
[Black "spectralsoul"]
[Result "0-1"]
[WhiteElo "2511"]
[BlackElo "2578"]
[TimeControl "180+2"]
[EndTime "11:54:51 PST"]
[Termination "spectralsoul won by resignation"]

1. d4 {[%clk 0:03:01.9]} 1... Nf6 {[%clk 0:02:57.7]} 2. c4 {[%clk 0:03:00.5]}
2... e6 {[%clk 0:02:58.7]} 3. g3 {[%clk 0:03:00.6]} 3... d5 {[%clk 0:02:58.1]}
4. Bg2 {[%clk 0:03:01.3]} 4... dxc4 {[%clk 0:02:58.2]} 5. Nf3 {[%clk 0:03:02]}
5... Nc6 {[%clk 0:02:57.2]} 6. Qa4 {[%clk 0:03:01.9]} 6... Qd5 {[%clk
0:02:45.5]} 7. Nc3 {[%clk 0:02:58]} 7... Bb4 {[%clk 0:02:45.9]} 8. O-O {[%clk
0:02:56]} 8... Bxc3 {[%clk 0:02:47.1]} 9. bxc3 {[%clk 0:02:56.8]} 9... O-O
{[%clk 0:01:50.4]} 10. Nd2 {[%clk 0:02:13.1]} 10... Qh5 {[%clk 0:01:40.1]} 11.
Nxc4 {[%clk 0:02:09.7]} 11... Qxe2 {[%clk 0:01:38.6]} 12. Ba3 {[%clk 0:02:09.3]}
12... Rd8 {[%clk 0:01:37.6]} 13. Rfe1 {[%clk 0:02:07.6]} 13... Qd3 {[%clk
0:01:27.3]} 14. Rad1 {[%clk 0:01:56.8]} 14... Qf5 {[%clk 0:00:59.6]} 15. Ne5
{[%clk 0:01:47]} 15... Nxe5 {[%clk 0:00:39.7]} 16. dxe5 {[%clk 0:01:47.5]} 16...
Bd7 {[%clk 0:00:41.2]} 17. Qd4 {[%clk 0:01:39.8]} 17... Nd5 {[%clk 0:00:40.9]}
18. c4 {[%clk 0:01:37.6]} 18... Nb6 {[%clk 0:00:40.7]} 19. Bxb7 {[%clk
0:01:35.7]} 19... Rab8 {[%clk 0:00:42.2]} 20. Be4 {[%clk 0:01:32.2]} 20... Qh5
{[%clk 0:00:43.4]} 21. Qd3 {[%clk 0:01:01.9]} 21... Rdc8 {[%clk 0:00:39]} 22.
Bf3 {[%clk 0:00:53.9]} 22... Qh3 {[%clk 0:00:39.7]} 23. Re4 {[%clk 0:00:42.3]}
23... Qf5 {[%clk 0:00:37.8]} 24. Qe3 {[%clk 0:00:33.1]} 24... Ba4 {[%clk
0:00:36]} 25. Rf4 {[%clk 0:00:29.2]} 25... Qc2 {[%clk 0:00:36.1]} 26. Rc1 {[%clk
0:00:26]} 26... Qxa2 {[%clk 0:00:36.7]} 27. Bh5 {[%clk 0:00:26.3]} 27... Be8
{[%clk 0:00:36.1]} 28. Qf3 {[%clk 0:00:23.9]} 28... g6 {[%clk 0:00:34.6]} 29.
Bg4 {[%clk 0:00:23.5]} 29... Nd7 {[%clk 0:00:29]} 30. Bxe6 {[%clk 0:00:17.3]}
30... Nxe5 {[%clk 0:00:29.7]} 31. Qe3 {[%clk 0:00:16.2]} 31... Bd7 {[%clk
0:00:25.9]} 32. Bxd7 {[%clk 0:00:12.4]} 32... Nxd7 {[%clk 0:00:27.2]} 33. Qe7
{[%clk 0:00:13.5]} 33... Ne5 {[%clk 0:00:23.7]} 34. Bc5 {[%clk 0:00:10.5]} 34...
Re8 {[%clk 0:00:24.3]} 35. Qf6 {[%clk 0:00:11.1]} 35... Re6 {[%clk 0:00:25.3]}
36. Qg5 {[%clk 0:00:08]} 36... Nd3 {[%clk 0:00:24.7]} 37. Rd4 {[%clk 0:00:07]}
37... Nxc1 {[%clk 0:00:22.9]} 38. Rd8+ {[%clk 0:00:07.8]} 38... Re8 {[%clk
0:00:24.2]} 39. Rxe8+ {[%clk 0:00:08.3]} 39... Rxe8 {[%clk 0:00:24.5]} 40. Qxc1
{[%clk 0:00:09.2]} 40... Qe2 {[%clk 0:00:24.1]} 41. Be3 {[%clk 0:00:10.1]} 41...
a5 {[%clk 0:00:22.8]} 42. h4 {[%clk 0:00:10.5]} 42... a4 {[%clk 0:00:23.1]} 43.
Qa1 {[%clk 0:00:11]} 43... Rxe3 {[%clk 0:00:23.4]} 44. fxe3 {[%clk 0:00:11.3]}
44... Qxe3+ {[%clk 0:00:24.8]} 45. Kg2 {[%clk 0:00:12.2]} 45... Qe2+ {[%clk
0:00:26.3]} 46. Kh3 {[%clk 0:00:13.3]} 46... Qxc4 {[%clk 0:00:28.2]} 47. Qa3
{[%clk 0:00:11]} 47... h5 {[%clk 0:00:26.8]} 48. Kh2 {[%clk 0:00:09.1]} 48...
Qc2+ {[%clk 0:00:27.4]} 49. Kh3 {[%clk 0:00:10.1]} 49... Qf5+ {[%clk 0:00:29.1]}
50. Kh2 {[%clk 0:00:11.3]} 50... Qd7 {[%clk 0:00:30.9]} 51. Qb4 {[%clk
0:00:11.1]} 51... Qc6 {[%clk 0:00:30.4]} 52. Qb8+ {[%clk 0:00:10.9]} 52... Kh7
{[%clk 0:00:31.4]} 53. Qb2 {[%clk 0:00:10.4]} 53... Qc4 {[%clk 0:00:30.9]} 54.
Qa3 {[%clk 0:00:09.5]} 54... Qb3 {[%clk 0:00:31.6]} 55. Qc5 {[%clk 0:00:09]}
55... a3 {[%clk 0:00:32]} 56. Qxc7 {[%clk 0:00:09.5]} 56... a2 {[%clk
0:00:32.3]} 57. Qe5 {[%clk 0:00:09.3]} 57... Qc2+ {[%clk 0:00:31.5]} 0-1

[Event "*** Titled Tuesday 3|2 Blitz"]
[Site "Chess.com"]
[Date "2016.03.01"]
[Round "2"]
[White "SabinoBrunello"]
[Black "Mischuk_D"]
[Result "0-1"]
[WhiteElo "2520"]
[BlackElo "2538"]
[TimeControl "180+2"]
[EndTime "11:56:08 PST"]
[Termination "Mischuk_D won by resignation"]

1. d4 {[%clk 0:03:01.9]} 1... Nf6 {[%clk 0:03:00.8]} 2. Nf3 {[%clk 0:03:03.1]}
2... g6 {[%clk 0:03:02.2]} 3. Bf4 {[%clk 0:03:03.8]} 3... Bg7 {[%clk 0:03:03]}
4. c3 {[%clk 0:03:04.8]} 4... d5 {[%clk 0:03:04]} 5. e3 {[%clk 0:03:04.3]} 5...
c6 {[%clk 0:03:04.9]} 6. h3 {[%clk 0:03:05.1]} 6... O-O {[%clk 0:03:05.9]} 7.
Nbd2 {[%clk 0:03:06.4]} 7... Bf5 {[%clk 0:03:05.3]} 8. Be2 {[%clk 0:03:06.9]}
8... Ne4 {[%clk 0:03:04.4]} 9. O-O {[%clk 0:03:07]} 9... Nxd2 {[%clk 0:03:04.4]}
10. Qxd2 {[%clk 0:03:04.2]} 10... Nd7 {[%clk 0:03:05.3]} 11. Bh2 {[%clk
0:03:03.3]} 11... Nf6 {[%clk 0:03:05.8]} 12. c4 {[%clk 0:03:04.1]} 12... Ne4
{[%clk 0:03:03.6]} 13. Qb4 {[%clk 0:03:05]} 13... Qb6 {[%clk 0:03:04.4]} 14. Qa3
{[%clk 0:03:03.5]} 14... dxc4 {[%clk 0:03:00.5]} 15. Bxc4 {[%clk 0:03:03.8]}
15... Nd6 {[%clk 0:02:50.8]} 16. Be2 {[%clk 0:03:01.3]} 16... Rfd8 {[%clk
0:02:48.1]} 17. Rac1 {[%clk 0:02:57.7]} 17... a5 {[%clk 0:02:41.9]} 18. Be5
{[%clk 0:02:49.5]} 18... Qb4 {[%clk 0:02:40.7]} 19. Bxg7 {[%clk 0:02:45.7]}
19... Qxa3 {[%clk 0:02:40.6]} 20. bxa3 {[%clk 0:02:46.7]} 20... Kxg7 {[%clk
0:02:41.8]} 21. a4 {[%clk 0:02:47.3]} 21... Be6 {[%clk 0:02:39.3]} 22. Rc2
{[%clk 0:02:46.1]} 22... Bd5 {[%clk 0:02:37.4]} 23. Rfc1 {[%clk 0:02:44.2]}
23... Bxf3 {[%clk 0:02:35.8]} 24. Bxf3 {[%clk 0:02:44.1]} 24... e6 {[%clk
0:02:35.5]} 25. Rb2 {[%clk 0:02:44]} 25... f5 {[%clk 0:02:35.1]} 26. Be2 {[%clk
0:02:44.5]} 26... Kf6 {[%clk 0:02:35.3]} 27. Rc5 {[%clk 0:02:45.1]} 27... Rd7
{[%clk 0:02:31.2]} 28. f3 {[%clk 0:02:45.4]} 28... h5 {[%clk 0:02:31.4]} 29. h4
{[%clk 0:02:44]} 29... Rg7 {[%clk 0:02:28.5]} 30. Kf2 {[%clk 0:02:43]} 30... g5
{[%clk 0:02:29.3]} 31. hxg5+ {[%clk 0:02:41.1]} 31... Rxg5 {[%clk 0:02:30.9]}
32. Rb1 {[%clk 0:02:38.2]} 32... h4 {[%clk 0:02:28.6]} 33. Rh1 {[%clk
0:02:36.6]} 33... Rh5 {[%clk 0:02:27.9]} 34. Bf1 {[%clk 0:02:27.3]} 34... Rhh8
{[%clk 0:02:27.6]} 35. Ke1 {[%clk 0:02:25.1]} 35... Ke7 {[%clk 0:02:24.2]} 36.
Kf2 {[%clk 0:02:24.5]} 36... Kd7 {[%clk 0:02:25.1]} 37. Bd3 {[%clk 0:02:21.9]}
37... Rh6 {[%clk 0:02:18.5]} 38. Kg1 {[%clk 0:02:07.8]} 38... Rhh8 {[%clk
0:02:18]} 39. Kh2 {[%clk 0:02:08.5]} 39... Rhg8 {[%clk 0:02:17.4]} 40. Kg1
{[%clk 0:02:03.8]} 40... Rh8 {[%clk 0:02:17]} 41. Bc2 {[%clk 0:02:00.6]} 41...
Kc7 {[%clk 0:02:08.5]} 42. Bb3 {[%clk 0:01:59.5]} 42... Kd7 {[%clk 0:02:09.5]}
43. Kf2 {[%clk 0:01:57.3]} 43... Rh6 {[%clk 0:02:07.9]} 44. Rh2 {[%clk 0:01:57]}
44... Rhh8 {[%clk 0:02:07.6]} 45. Bc2 {[%clk 0:01:54.2]} 45... Rh6 {[%clk
0:02:07.1]} 46. Bd3 {[%clk 0:01:55.1]} 46... Rhh8 {[%clk 0:02:07.3]} 47. Be2
{[%clk 0:01:54.2]} 47... Rh6 {[%clk 0:02:07.9]} 48. Bf1 {[%clk 0:01:51.7]} 48...
Rhh8 {[%clk 0:02:08.6]} 49. Bd3 {[%clk 0:01:52.5]} 49... Rh6 {[%clk 0:02:08.5]}
50. Bc2 {[%clk 0:01:51.1]} 50... Rhh8 {[%clk 0:02:09]} 51. Bb3 {[%clk 0:01:52]}
51... Rh6 {[%clk 0:02:08.7]} 52. Rc1 {[%clk 0:01:52.3]} 52... Rah8 {[%clk
0:02:05.4]} 53. Rch1 {[%clk 0:01:49.9]} 53... Ke7 {[%clk 0:02:01.7]} 54. Kf1
{[%clk 0:01:49.4]} 54... Kf6 {[%clk 0:01:58]} 55. Kf2 {[%clk 0:01:47.7]} 55...
Kg5 {[%clk 0:01:53.8]} 56. Rc1 {[%clk 0:01:47.6]} 56... Kf6 {[%clk 0:01:53.2]}
57. Rc5 {[%clk 0:01:47.8]} 57... Ra8 {[%clk 0:01:52.7]} 58. Rh3 {[%clk
0:01:45.3]} 58... Ke7 {[%clk 0:01:52.9]} 59. Kg1 {[%clk 0:01:43.1]} 59... Kd7
{[%clk 0:01:45.6]} 60. Bc2 {[%clk 0:01:38.9]} 60... Rhh8 {[%clk 0:01:45]} 61.
Kf2 {[%clk 0:01:37.1]} 61... Rh6 {[%clk 0:01:45.5]} 62. Bd3 {[%clk 0:01:37.3]}
62... Rhh8 {[%clk 0:01:46]} 63. Rh1 {[%clk 0:01:32.1]} 63... Rh6 {[%clk
0:01:46]} 64. Kg1 {[%clk 0:01:31.4]} 64... Rhh8 {[%clk 0:01:43.7]} 65. Kh2
{[%clk 0:01:32.3]} 65... Rhg8 {[%clk 0:01:45]} 66. Rb1 {[%clk 0:01:23.5]} 66...
Rg3 {[%clk 0:01:44.1]} 67. Bf1 {[%clk 0:01:22.8]} 67... Rag8 {[%clk 0:01:42.6]}
68. Rxa5 {[%clk 0:01:21.3]} 68... h3 {[%clk 0:01:43.9]} 69. Rb2 {[%clk
0:01:09.6]} 69... hxg2 {[%clk 0:01:44.4]} 70. Rxg2 {[%clk 0:00:59.5]} 70...
Rxg2+ {[%clk 0:01:43.3]} 71. Bxg2 {[%clk 0:01:01.4]} 71... Nc4 {[%clk
0:01:43.2]} 72. Rc5 {[%clk 0:00:51.1]} 72... Nxe3 {[%clk 0:01:43.1]} 73. Bh3
{[%clk 0:00:52.3]} 73... Ra8 {[%clk 0:01:42.4]} 74. a5 {[%clk 0:00:53.1]} 74...
Nd5 {[%clk 0:01:41.5]} 75. Bf1 {[%clk 0:00:53.5]} 75... Kd6 {[%clk 0:01:37]} 76.
Kg3 {[%clk 0:00:54.1]} 76... e5 {[%clk 0:01:37.7]} 77. a6 {[%clk 0:00:52.5]}
77... bxa6 {[%clk 0:01:36.1]} 78. Ra5 {[%clk 0:00:53.5]} 78... exd4 {[%clk
0:01:37.1]} 79. Rxa6 {[%clk 0:00:51.8]} 79... Rxa6 {[%clk 0:01:37]} 80. Bxa6
{[%clk 0:00:52.7]} 80... f4+ {[%clk 0:01:37.1]} 81. Kf2 {[%clk 0:00:53]} 81...
Kc5 {[%clk 0:01:37.1]} 82. Ke1 {[%clk 0:00:51.3]} 82... Kb4 {[%clk 0:01:38.2]}
83. Kd2 {[%clk 0:00:52.4]} 83... c5 {[%clk 0:01:37.3]} 84. Kd3 {[%clk
0:00:50.8]} 84... Nc3 {[%clk 0:01:36.2]} 85. Bc4 {[%clk 0:00:50.8]} 85... Na4
{[%clk 0:01:37.2]} 86. Bf7 {[%clk 0:00:48.9]} 86... Nb2+ {[%clk 0:01:37.3]} 87.
Kc2 {[%clk 0:00:42.7]} 87... Nc4 {[%clk 0:01:37.9]} 88. Bd5 {[%clk 0:00:40.9]}
88... Ne5 {[%clk 0:01:38]} 89. Kb2 {[%clk 0:00:39.2]} 89... c4 {[%clk
0:01:39.1]} 90. a3+ {[%clk 0:00:40.4]} 90... Kc5 {[%clk 0:01:40.5]} 91. Be4
{[%clk 0:00:41.5]} 91... Nd7 {[%clk 0:01:38.2]} 92. Kc2 {[%clk 0:00:40]} 92...
Nb6 {[%clk 0:01:39.3]} 93. Bb7 {[%clk 0:00:40.4]} 93... Nd5 {[%clk 0:01:39.5]}
94. Kd2 {[%clk 0:00:39.1]} 94... Nc3 {[%clk 0:01:39.4]} 95. Kc2 {[%clk
0:00:39.9]} 95... Nb5 {[%clk 0:01:40.2]} 96. a4 {[%clk 0:00:40.9]} 96... Nd6
{[%clk 0:01:39.5]} 97. a5 {[%clk 0:00:40.9]} 97... Nxb7 {[%clk 0:01:38.5]} 98.
a6 {[%clk 0:00:42]} 98... Kb6 {[%clk 0:01:39.8]} 99. axb7 {[%clk 0:00:43.1]}
99... Kxb7 {[%clk 0:01:40.9]} 0-1